Workbook

Sheet Cover
C2: AI Transition Explainer Model
C3: Companion to Wachter and Wachter (2026): What Investment Data Implies about the AI Transition
A5: x | C5: Sheet Index
C6: Tab Name | D6: Description
C7: Cover
C8: Dashboard | D8: Summary tables and charts
C9: Parameters | D9: All model assumptions and calibrated parameters (named ranges)
C10: CAPEX Build | D10: Bottom up CAPEX estimation, 2022-2027
C11: Model 1 - Calibration | D11: Boom-size identification, sensitivity, p* calibration
C12: Model 1 - Inv & GDP Paths | D12: Four investment/output/GDP scenario
C13: Model 2 - Riskfree and ERP | D13: Equilibrium rf and ERP vs. γ
A15: x | C15: Conventions
C16: All dollar values in $B unless otherwise noted in column headers.
A18: x | C18: Legend
C19: Yellow fill with blue text: User-editable inputs
C20: Blue text: Hard-coded source data
C21: Black text: Formulas
C22: Green text: links to another sheet
A24: x | C24: Usage Guide
C25: After editing user-input cells, click Alt-F8 and select RunAll to propagate changes through the model.

Sheet Summary Dashboard
C2: Summary Dashboard
C3: Wachter and Wachter (2026): What Investment Data Implies about the AI Transition
A6: x | C6: CAPEX Data
A25: x | C25: Investment Paths
A74: x | C74: GDP Growth Paths
A120: x | C120: Risk-free and ERP

Sheet Parameters
C2: Parameters
C3: Wachter and Wachter (2026): What Investment Data Implies about the AI Transition
A5: x | C5: Assumed Parameters
C7: Named Range | D7: Default | E7: Description
C8: alpha | D8: =1/3 -> 0.3333333333 | E8: Capital share (Cobb-Douglas)
C9: delta_a | D9: 0.25 | E9: AI-capital depreciation rate (4-yr useful life)
C10: delta_n | D10: 0.07 | E10: Non-AI capital depreciation rate (standard BEA)
C11: r_a | D11: 0.15 | E11: Required real return on AI-sector capital
C12: r_n | D12: 0.05 | E12: Required real return on non-AI capital
C13: p_max | D13: 0.5 | E13: Window boom probability (maximum uncertainty)
C14: theta_a | D14: 3 | E14: Partial-adjustment speed (years to close 1/θ of gap)
C15: Ya0_share | D15: 0.031 | E15: Pre-boom AI output share of GDP
C16: GDP0 | D16: 25500 | E16: Pre-boom nominal GDP ($B, ~2022)
C17: S&P 500 D/P (%) | D17: 0.0106 | E17: May 2026 trailing yield
C18: TIPS yield, 30yr (%) | D18: 0.027 | E18: Approx. real risk-free rate
C19: Equity premium assumption | D19: 0.05 | E19: Historical ERP
A21: x | C21: Calibrated Parameters
C23: Named Range | D23: Value | E23: Formula / Description
C24: I_pre | D24: =CAPEX!D13 -> 155 | E24: Pre-boom annual AI capex ($B) — 2022 Total
C25: I_bar | D25: ='CAPEX Build'!D17 -> 2452 | E25: Cumulative 2024–2027 investment ($B)
C26: K0 | D26: =I_pre/delta_a -> 620 | E26: Pre-boom AI capital stock ($B) = I_pre/δ_a
C27: exp_xi | D27: ='Model 1 - Calibration'!D14 -> 2.688479263 | E27: Implied productivity multiplier e^xi
C28: xi | D28: ='Model 1 - Calibration'!D15 -> 0.9889757039 | E28: Log boom size xi
C29: z0 | D29: =K0*((r_a+delta_a)/alpha)^(1/(1-alpha)) -> 815.0111656 | E29: Pre-boom AI productivity level
C30: z1 | D30: =z0*exp_xi -> 2191.140617 | E30: Post-boom AI productivity level
C31: Ya0 | D31: =z0^(1-alpha)*K0^alpha -> 744 | E31: Pre-boom AI output ($B)
C32: Yn0 | D32: =Ya0*(1-Ya0_share)/Ya0_share -> 23256 | E32: Non-AI output, fixed ($B)
C33: GDP_0 | D33: =Ya0+Yn0 -> 24000 | E33: Model-consistent pre-boom GDP ($B)
C34: Kn0 | D34: =(GDP0-I_pre)/delta_n -> 362071.4286 | E34: Non-AI capital stock ($B)
C35: p_star | D35: ='Model 1 - Calibration'!D50 -> 0.03932532751
A37: x | C37: Disaster & Asset-Pricing Parameters
C39: Named Range | D39: Default | E39: Description
C40: p_d | D40: 0.036 | E40: Annual disaster probability (Barro 2006)
C41: xi_d | D41: -0.15 | E41: Log disaster size (Wachter 2013)
C42: rho | D42: 0.02 | E42: Time discount rate
C43: mu_c | D43: 0.025 | E43: Normal-times consumption growth mean
C44: sigma_c | D44: 0.02 | E44: Normal-times consumption growth volatility
C45: beta_ap | D45: =EXP(-rho) -> 0.9801986733 | E45: Discount factor

Sheet CAPEX Build
C2: Updated CAPEX
C3: Wachter & Wachter (2026) — What Investment Data Implies about the AI Transition
A5: x | C5: Parameters and Toggles
C7: Calendarize | D7: No
C8: Include Tier 1 neoclouds? (Yes/No) | D8: No
C9: Include Tier 2 neoclouds? (Yes/No) | D9: No
C10: Tier 2 haircut (decimal) | D10: 0.5
C11: I_bar source | D11: 5-firm
C13: I_BAR SUMMARY ($B cumulative 2024–2027)
C14: I_bar, 5-firms | D14: =K85 -> 2452
C15: I_bar, all-firms as per settings above | D15: =K102 -> 2452
C17: Active I_bar | D17: =IF(D11="5-firm",D14,D15) -> 2452
A21: x | C21: Raw Data (FY, as reported)
C23: Firm | D23: FY end | E23: 2022 | F23: 2023 | G23: 2024 | H23: 2025 | I23: 2026f | J23: 2027e | K23: Cum. 2024–27
C24: Hyperscalers
C25: Amazon | D25: Dec 31 | E25: 64 | F25: 53 | G25: 83 | H25: 132 | I25: 200 | J25: 285 | K25: =SUM(G25:J25) -> 700
C26: Alphabet | D26: Dec 31 | E26: 31 | F26: 32 | G26: 53 | H26: 91 | I26: 180 | J26: 255 | K26: 579
C27: Microsoft | D27: Jun 30 | E27: 24 | F27: 28 | G27: 44 | H27: 65 | I27: 175 | J27: 250 | K27: 534
C28: Meta | D28: Dec 31 | E28: 31 | F28: 28 | G28: 39 | H28: 72 | I28: 135 | J28: 195 | K28: 441
C29: Oracle | D29: May 31 | E29: 5 | F29: 9 | G29: 7 | H29: 21 | I29: 65 | J29: 105 | K29: 198
C30: Hyperscaler subtotal | E30: =SUM(E25:E29) -> 155 | F30: 150 | G30: 226 | H30: 381 | I30: 755 | J30: 1090 | K30: 2452
C32: Tier 1 Neoclouds
C33: xAI / SpaceX AI | D33: Dec 31 | E33: 0 | F33: 0.5 | G33: 5.6 | H33: 12.7 | I33: 40 | J33: 60 | K33: 118.3
C34: CoreWeave | D34: Dec 31 | E34: 0 | F34: 0 | G34: 10.3 | H34: 21.5 | I34: 33 | J34: 52 | K34: 116.8
C35: IREN | D35: Jun 30 | E35: 0 | F35: 0 | G35: 0.5 | H35: 1.6 | I35: 6 | J35: 10 | K35: 18.1
C36: Crusoe | D36: Dec 31 | E36: 0 | F36: 0 | G36: 1 | H36: 4 | I36: 12 | J36: 14 | K36: 31
C37: Lambda | D37: Dec 31 | E37: 0 | F37: 0 | G37: 0.3 | H37: 1 | I37: 4 | J37: 7 | K37: 12.3
C38: Tier 1 subtotal | E38: 0 | F38: 0.5 | G38: 17.7 | H38: 40.8 | I38: 95 | J38: 143 | K38: 296.5
C40: Tier 2 Neoclouds
C41: Applied Digital | D41: May 31 | E41: 0 | F41: 0 | G41: 0.2 | H41: 1 | I41: 4 | J41: 5.5 | K41: 10.7
C42: Hut 8 | D42: Dec 31 | E42: 0 | F42: 0 | G42: 0.1 | H42: 0.2 | I42: 2 | J42: 4.5 | K42: 6.8
C43: Tier 2 gross subtotal | E43: =SUM(E41:E42) -> 0 | F43: 0 | G43: 0.3 | H43: 1.2 | I43: 6 | J43: 10 | K43: 17.5
A45: x | C45: Calendarization Helpers (quarterly actuals)
C46: Microsoft (FY Jun 30), quarterly actuals for FY2026
C47: Quarter | D47: Period | E47: Capex ($B) | F47: Type | G47: Source
C48: Q1 FY26 | D48: Jul–Sep 2025 | E48: 19.4 | F48: Actual | G48: 8-K Q1 FY26 EX-99.1
C49: Q2 FY26 | D49: Oct–Dec 2025 | E49: 29.9 | F49: Actual | G49: 8-K Q2 FY26 EX-99.1
C50: Q3 FY26 | D50: Jan–Mar 2026 | E50: 30.9 | F50: Actual | G50: 8-K Q3 FY26 EX-99.1
C51: Q4 FY26 (est.) | D51: Apr–Jun 2026 | E51: =I27-SUM(E48:E50) -> 94.8 | F51: Estimated | G51: FY26 total (E26) minus 9-month actual
C53: H1 FY26 (Jul–Dec 2025, CY2025 tail) | D53: =E48+E49 -> 49.3
C54: H2 FY25 (Jan–Jun 2025, CY2025 head) — even split | D54: =H27*0.5 -> 32.5
C55: Microsoft CY2025 (calendarized) | D55: =D53+D54 -> 81.8
C57: IREN (FY Jun 30), quarterly actuals for FY2026
C58: Quarter | D58: Period | E58: Capex ($B) | F58: Type | G58: Source
C59: 9M FY26 total | D59: Jul 2025–Mar 2026 | E59: 2.61 | F59: Actual | G59: 10-Q Q3 FY26
C60: Q3 FY26 | D60: Jan–Mar 2026 | E60: 1.48 | F60: Actual | G60: 8-K Q3 FY26 EX-99.1
C61: H1 FY26 (Q1+Q2, Jul–Dec 2025) | D61: Jul–Dec 2025 | E61: =E59-E60 -> 1.13 | F61: Derived | G61: 9M minus Q3
C62: H2 FY25 (Jan–Jun 2025) — even split | D62: 0.8
C63: IREN CY2025 (calendarized) | D63: =E61+D62 -> 1.93
A66: x | C66: Calendarized CAPEX (calendar year; non-Dec FY firms only)
C67: Dec-31 FY firms are omitted since their CY equals FY. Columns G and H (2026f, 2027e) are unaffected by this toggle for all firms.
C69: Firm | D69: FY end | E69: 2022 | F69: 2023 | G69: 2024 | H69: 2025 | I69: 2026f | J69: 2027e | K69: Cum. 2024–27
C70: Microsoft (CY) | D70: Jun 30 | E70: =0.5*E27+0.5*F27 -> 26 | F70: =0.5*F27+0.5*G27 -> 36 | G70: =0.5*G27+0.5*H27 -> 54.5 | H70: =D55 -> 81.8 | I70: =I27 -> 175 | J70: =J27 -> 250 | K70: =SUM(G70:J70) -> 561.3
C71: Oracle (CY) | D71: May 31 | E71: =(5/12)*E29+(7/12)*F29 -> 7.333333333 | F71: =(5/12)*F29+(7/12)*G29 -> 7.833333333 | G71: =(5/12)*G29+(7/12)*H29 -> 15.16666667 | H71: =(5/12)*H29+(7/12)*I29 -> 46.66666667 | I71: =I29 -> 65 | J71: =J29 -> 105 | K71: 231.8333333
C72: IREN (CY) | D72: Jun 30 | E72: =0.5*E35+0.5*F35 -> 0 | F72: =0.5*F35+0.5*G35 -> 0.25 | G72: =0.5*G35+0.5*H35 -> 1.05 | H72: =D63 -> 1.93 | I72: =I35 -> 6 | J72: =J35 -> 10 | K72: 18.98
C73: Applied Digital (CY) | D73: May 31 | E73: =(5/12)*E41+(7/12)*F41 -> 0 | F73: =(5/12)*F41+(7/12)*G41 -> 0.1166666667 | G73: =(5/12)*G41+(7/12)*H41 -> 0.6666666667 | H73: =(5/12)*H41+(7/12)*I41 -> 2.75 | I73: =I41 -> 4 | J73: =J41 -> 5.5 | K73: 12.91666667
A75: x | C75: Active CAPEX Table (feeds all downstream calculations)
C76: Toggle B6 controls FY vs. CY for non-Dec firms (2022–2025). Toggles B7/B8 control neocloud inclusion. B9 controls Tier 2 haircut.
C78: Firm | D78: FY end | E78: 2022 | F78: 2023 | G78: 2024 | H78: 2025 | I78: 2026f | J78: 2027e | K78: Cum. 2024–27
C79: Hyperscalers
C80: Amazon | D80: Dec 31 | E80: =E25 -> 64 | F80: =F25 -> 53 | G80: =G25 -> 83 | H80: =H25 -> 132 | I80: =I25 -> 200 | J80: =J25 -> 285 | K80: =SUM(G80:J80) -> 700
C81: Alphabet | D81: Dec 31 | E81: =E26 -> 31 | F81: =F26 -> 32 | G81: =G26 -> 53 | H81: =H26 -> 91 | I81: =I26 -> 180 | J81: =J26 -> 255 | K81: 579
C82: Microsoft | D82: Jun 30 | E82: =IF($D$7="Yes",E70,E27) -> 24 | F82: =IF($D$7="Yes",F70,F27) -> 28 | G82: =IF($D$7="Yes",G70,G27) -> 44 | H82: =IF($D$7="Yes",H70,H27) -> 65 | I82: =I27 -> 175 | J82: =J27 -> 250 | K82: 534
C83: Meta | D83: Dec 31 | E83: =E28 -> 31 | F83: =F28 -> 28 | G83: =G28 -> 39 | H83: =H28 -> 72 | I83: =I28 -> 135 | J83: =J28 -> 195 | K83: 441
C84: Oracle | D84: May 31 | E84: =IF($D$7="Yes",E71,E29) -> 5 | F84: =IF($D$7="Yes",F71,F29) -> 9 | G84: =IF($D$7="Yes",G71,G29) -> 7 | H84: =IF($D$7="Yes",H71,H29) -> 21 | I84: =I29 -> 65 | J84: =J29 -> 105 | K84: 198
C85: Hyperscaler subtotal | E85: =SUM(E80:E84) -> 155 | F85: 150 | G85: 226 | H85: 381 | I85: 755 | J85: 1090 | K85: 2452
C87: Tier 1 Neoclouds
C88: xAI / SpaceX AI | D88: Dec 31 | E88: =IF($D$8="Yes",E33,0) -> 0 | F88: =IF($D$8="Yes",F33,0) -> 0 | G88: =IF($D$8="Yes",G33,0) -> 0 | H88: =IF($D$8="Yes",H33,0) -> 0 | I88: =IF($D$8="Yes",I33,0) -> 0 | J88: =IF($D$8="Yes",J33,0) -> 0 | K88: =SUM(G88:J88) -> 0
C89: CoreWeave | D89: Dec 31 | E89: =IF($D$8="Yes",E34,0) -> 0 | F89: =IF($D$8="Yes",F34,0) -> 0 | G89: =IF($D$8="Yes",G34,0) -> 0 | H89: =IF($D$8="Yes",H34,0) -> 0 | I89: =IF($D$8="Yes",I34,0) -> 0 | J89: =IF($D$8="Yes",J34,0) -> 0 | K89: 0
C90: IREN | D90: Jun 30 | E90: =IF($D$8="Yes",IF($D$7="Yes",E72,E35),0) -> 0 | F90: =IF($D$8="Yes",IF($D$7="Yes",F72,F35),0) -> 0 | G90: =IF($D$8="Yes",IF($D$7="Yes",G72,G35),0) -> 0 | H90: =IF($D$8="Yes",IF($D$7="Yes",H72,H35),0) -> 0 | I90: =IF($D$8="Yes",I35,0) -> 0 | J90: =IF($D$8="Yes",J35,0) -> 0 | K90: 0
C91: Crusoe | D91: Dec 31 | E91: =IF($D$8="Yes",E36,0) -> 0 | F91: =IF($D$8="Yes",F36,0) -> 0 | G91: =IF($D$8="Yes",G36,0) -> 0 | H91: =IF($D$8="Yes",H36,0) -> 0 | I91: =IF($D$8="Yes",I36,0) -> 0 | J91: =IF($D$8="Yes",J36,0) -> 0 | K91: 0
C92: Lambda | D92: Dec 31 | E92: =IF($D$8="Yes",E37,0) -> 0 | F92: =IF($D$8="Yes",F37,0) -> 0 | G92: =IF($D$8="Yes",G37,0) -> 0 | H92: =IF($D$8="Yes",H37,0) -> 0 | I92: =IF($D$8="Yes",I37,0) -> 0 | J92: =IF($D$8="Yes",J37,0) -> 0 | K92: 0
C93: Tier 1 subtotal | E93: =SUM(E88:E92) -> 0 | F93: 0 | G93: 0 | H93: 0 | I93: 0 | J93: 0 | K93: 0
C95: Tier 2 Neoclouds
C96: Applied Digital | D96: May 31 | E96: =IF($D$9="Yes",IF($D$7="Yes",E73,E41),0) -> 0 | F96: =IF($D$9="Yes",IF($D$7="Yes",F73,F41),0) -> 0 | G96: =IF($D$9="Yes",IF($D$7="Yes",G73,G41),0) -> 0 | H96: =IF($D$9="Yes",IF($D$7="Yes",H73,H41),0) -> 0 | I96: =IF($D$9="Yes",I41,0) -> 0 | J96: =IF($D$9="Yes",J41,0) -> 0 | K96: =SUM(G96:J96) -> 0
C97: Hut 8 | D97: Dec 31 | E97: =IF($D$9="Yes",E42,0) -> 0 | F97: =IF($D$9="Yes",F42,0) -> 0 | G97: =IF($D$9="Yes",G42,0) -> 0 | H97: =IF($D$9="Yes",H42,0) -> 0 | I97: =IF($D$9="Yes",I42,0) -> 0 | J97: =IF($D$9="Yes",J42,0) -> 0 | K97: 0
C98: Tier 2 gross subtotal | E98: =SUM(E96:E97) -> 0 | F98: 0 | G98: 0 | H98: 0 | I98: 0 | J98: 0 | K98: 0
C99: Tier 2 haircut | E99: =-E98*$D$10 -> 0 | F99: 0 | G99: 0 | H99: 0 | I99: 0 | J99: 0 | K99: 0
C100: Tier 2 net subtotal | E100: =E98+E99 -> 0 | F100: 0 | G100: 0 | H100: 0 | I100: 0 | J100: 0 | K100: 0
C102: Grand total (all selected) | E102: =E85+E93+E100 -> 155 | F102: 150 | G102: 226 | H102: 381 | I102: 755 | J102: 1090 | K102: 2452
A105: x | C105: AI Investment Relative to US Economy
C107: Item | E107: 2022 | F107: 2023 | G107: 2024 | H107: 2025 | I107: 2026f | J107: 2027e
C108: AI capex, 5-firm ($B) | E108: =E85 -> 155 | F108: =F85 -> 150 | G108: =G85 -> 226 | H108: =H85 -> 381 | I108: =I85 -> 755 | J108: =J85 -> 1090
C109: AI capex, grand total ($B) | E109: =E102 -> 155 | F109: =F102 -> 150 | G109: =G102 -> 226 | H109: =H102 -> 381 | I109: =I102 -> 755 | J109: =J102 -> 1090
C110: U.S. nominal GDP ($T) | E110: 25.5 | F110: 27.4 | G110: 29.2 | H110: 30.5 | I110: 31.5 | J110: 32.4
C111: U.S. gross PFI ($T) | E111: 4.7 | F111: 5 | G111: 5.2 | H111: 5.4 | I111: 5.5 | J111: 5.7
C112: 5-firm share of GDP (%) | E112: =E108/(E110*1000) -> 0.006078431373 | F112: 0.005474452555 | G112: 0.007739726027 | H112: 0.01249180328 | I112: 0.02396825397 | J112: 0.03364197531
C113: Universe total share of GDP (%) | E113: =E109/(E110*1000) -> 0.006078431373 | F113: 0.005474452555 | G113: 0.007739726027 | H113: 0.01249180328 | I113: 0.02396825397 | J113: 0.03364197531
C114: 5-firm share of PFI (%) | E114: =E108/(E111*1000) -> 0.0329787234 | F114: 0.03 | G114: 0.04346153846 | H114: 0.07055555556 | I114: 0.1372727273 | J114: 0.1912280702
C115: Universe total share of PFI (%) | E115: =E109/(E111*1000) -> 0.0329787234 | F115: 0.03 | G115: 0.04346153846 | H115: 0.07055555556 | I115: 0.1372727273 | J115: 0.1912280702
A117: x | C117: I_bar (cumulative AI capex 2024–2027, $B)
C119: Series | E119: 2022 | F119: 2023 | G119: 2024 | H119: 2025 | I119: 2026f | J119: 2027e | K119: Cumulative
C120: 5-firm capex | G120: =G85 -> 226 | H120: =H85 -> 381 | I120: =I85 -> 755 | J120: =J85 -> 1090 | K120: =SUM(G120:J120) -> 2452
C121: Universe total capex (per toggles) | G121: =G102 -> 226 | H121: =H102 -> 381 | I121: =I102 -> 755 | J121: =J102 -> 1090 | K121: 2452
C123: Active I_bar (B16): | G123: =D17 -> 2452
A127: x | C127: Chart Helper
C129: Firm | D129: =E78 -> 2022 | E129: =F78 -> 2023 | F129: 2024 | G129: 2025 | H129: 2026f | I129: 2027e
C130: =C80 -> Amazon | D130: =E80 -> 64 | E130: =F80 -> 53 | F130: 83 | G130: 132 | H130: 200 | I130: 285
C131: =C81 -> Alphabet | D131: =E81 -> 31 | E131: 32 | F131: 53 | G131: 91 | H131: 180 | I131: 255
C132: Microsoft | D132: 24 | E132: 28 | F132: 44 | G132: 65 | H132: 175 | I132: 250
C133: Meta | D133: 31 | E133: 28 | F133: 39 | G133: 72 | H133: 135 | I133: 195
C134: Oracle | D134: 5 | E134: 9 | F134: 7 | G134: 21 | H134: 65 | I134: 105
C135: =IF(D8="Yes",C87,"T1 Neoclouds Excluded") -> T1 Neoclouds Excluded | D135: =IF(D8="Yes",E93:J93, 0) -> 0
C136: =IF(D9="Yes",C95,"T2 Neoclouds Excluded") -> T2 Neoclouds Excluded | D136: =IF(D9="Yes",E100:J100, 0) -> 0

Sheet CAPEX (hidden)
C2: CAPEX Data
C3: Wachter and Wachter (2026): What Investment Data Implies about the AI Transition
A5: x | C5: Capital Expenditure by Firm ($B)
C7: Company | D7: 2022 | E7: 2023 | F7: 2024 | G7: 2025 | H7: 2026f | I7: 2027f
C8: Amazon | D8: 64 | E8: 53 | F8: 83 | G8: 132 | H8: 200 | I8: 285
C9: Alphabet | D9: 31 | E9: 32 | F9: 53 | G9: 91 | H9: 180 | I9: 255
C10: Microsoft | D10: 24 | E10: 28 | F10: 44 | G10: 65 | H10: 175 | I10: 250
C11: Meta | D11: 31 | E11: 28 | F11: 39 | G11: 72 | H11: 135 | I11: 195
C12: Oracle | D12: 5 | E12: 9 | F12: 7 | G12: 21 | H12: 65 | I12: 105
C13: Total | D13: =SUM(D8:D12) -> 155 | E13: 150 | F13: 226 | G13: 381 | H13: 755 | I13: 1090
C15: I_bar | D15: =SUM(F13:I13) -> 2452
A17: x | C17: AI Investment Relative to the U.S. Economy
C19: Metric | D19: 2022 | E19: 2023 | F19: 2024 | G19: 2025 | H19: 2026f | I19: 2027f
C20: AI capex ($B) | D20: =D13 -> 155 | E20: 150 | F20: 226 | G20: 381 | H20: 755 | I20: 1090
C21: U.S. nominal GDP ($T) | D21: 25.5 | E21: 27.8 | F21: 29.2 | G21: 30.5 | H21: 31.5 | I21: 32.4
C22: U.S. gross private fixed investment ($T) | D22: 4.7 | E22: 4.9 | F22: 5.2 | G22: 5.4 | H22: 5.5 | I22: 5.7
C23: Share of GDP (%) | D23: =D20/(D21*1000) -> 0.006078431373 | E23: 0.005395683453 | F23: 0.007739726027 | G23: 0.01249180328 | H23: 0.02396825397 | I23: 0.03364197531
C24: Share of PFI (%) | D24: =D20/(D22*1000) -> 0.0329787234 | E24: 0.0306122449 | F24: 0.04346153846 | G24: 0.07055555556 | H24: 0.1372727273 | I24: 0.1912280702

Sheet Model 1 - Calibration
C2: Model 1 - Calibration
C3: Wachter and Wachter (2026): What Investment Data Implies about the AI Transition
A5: x | C5: Boom-Size Identification (Section 3 of paper)
C7: Input | D7: Value
C8: I_pre ($B) | D8: =I_pre -> 155
C9: I_bar ($B) | D9: =I_bar -> 2452
C10: δ_a | D10: =delta_a -> 0.25
C11: K₀ = I_pre/δ_a | D11: =K0 -> 620
C13: Output | D13: Value
C14: exp_xi | D14: =(I_bar/K0+1-delta_a)/(1 + 3 * delta_a) -> 2.688479263 | E14: feeds exp_xi
C15: xi | D15: =LN(exp_xi) -> 0.9889757039 | E15: feeds xi
A18: x | C18: Section B — Per-Firm Calibration Table (Table 5 from paper)
C20: Firm | D20: I_pre ($B) | E20: Ī_i ($B) | F20: K_i ($B) | G20: e^xi_i | H20: xi_i
C21: Amazon | D21: =CAPEX!D8 -> 64 | E21: =SUM(CAPEX!F8:I8) -> 700 | F21: =D21/delta_a -> 256 | G21: =(E21/F21+1-delta_a)/(1+3*delta_a) -> 1.991071429 | H21: =LN(G21) -> 0.6886729002
C22: Alphabet | D22: =CAPEX!D9 -> 31 | E22: =SUM(CAPEX!F9:I9) -> 579 | F22: =D22/delta_a -> 124 | G22: =(E22/F22+1-delta_a)/(1+3*delta_a) -> 3.096774194 | H22: =LN(G22) -> 1.130360987
C23: Microsoft | D23: =CAPEX!D10 -> 24 | E23: =SUM(CAPEX!F10:I10) -> 534 | F23: =D23/delta_a -> 96 | G23: =(E23/F23+1-delta_a)/(1+3*delta_a) -> 3.607142857 | H23: =LN(G23) -> 1.282916007
C24: Meta | D24: =CAPEX!D11 -> 31 | E24: =SUM(CAPEX!F11:I11) -> 441 | F24: =D24/delta_a -> 124 | G24: =(E24/F24+1-delta_a)/(1+3*delta_a) -> 2.460829493 | H24: =LN(G24) -> 0.9004984854
C25: Oracle | D25: =CAPEX!D12 -> 5 | E25: =SUM(CAPEX!F12:I12) -> 198 | F25: =D25/delta_a -> 20 | G25: =(E25/F25+1-delta_a)/(1+3*delta_a) -> 6.085714286 | H25: =LN(G25) -> 1.805944104
C26: Aggregate | D26: =I_pre -> 155 | E26: =I_bar -> 2452 | F26: =K0 -> 620 | G26: =exp_xi -> 2.688479263 | H26: =xi -> 0.9889757039
A28: x | C28: Sensitivity Table
C30: exp_xi | M30: xi
D31: 0 | E31: K_0 | N31: 0 | O31: K_0
E32: =F32-100 -> 320 | F32: =G32-100 -> 420 | G32: =H32-100 -> 520 | H32: =D11 -> 620 | I32: =H32+100 -> 720 | J32: =I32+100 -> 820 | K32: =J32+100 -> 920 | O32: =E32 -> 320 | P32: 420 | Q32: 520 | R32: 620 | S32: 720 | T32: 820 | U32: 920
D33: =D34-500 -> 952 | E33: =(D33/E32+1-delta_a)/(1+3*delta_a) -> 2.128571429 | F33: =(D33/F32+1-delta_a)/(1+3*delta_a) -> 1.723809524 | G33: =(D33/G32+1-delta_a)/(1+3*delta_a) -> 1.474725275 | H33: =(D33/H32+1-delta_a)/(1+3*delta_a) -> 1.305990783 | I33: =(D33/I32+1-delta_a)/(1+3*delta_a) -> 1.184126984 | J33: =(D33/J32+1-delta_a)/(1+3*delta_a) -> 1.091986063 | K33: =(D33/K32+1-delta_a)/(1+3*delta_a) -> 1.019875776 | N33: =D33 -> 952 | O33: =LN(E33) -> 0.7554510639 | P33: =LN(F33) -> 0.5445366811 | Q33: 0.388471718 | R33: 0.2669619737 | S33: 0.1690057808 | T33: 0.08799811416 | U33: 0.01968083203
D34: =D35-500 -> 1452 | E34: =(D34/E32+1-delta_a)/(1+3*delta_a) -> 3.021428571 | F34: =(D34/F32+1-delta_a)/(1+3*delta_a) -> 2.404081633 | G34: =(D34/G32+1-delta_a)/(1+3*delta_a) -> 2.024175824 | H34: =(D34/H32+1-delta_a)/(1+3*delta_a) -> 1.766820276 | I34: =(D34/I32+1-delta_a)/(1+3*delta_a) -> 1.580952381 | J34: =(D34/J32+1-delta_a)/(1+3*delta_a) -> 1.440418118 | K34: =(D34/K32+1-delta_a)/(1+3*delta_a) -> 1.330434783 | N34: 1452 | O34: =LN(E34) -> 1.105729756 | P34: 0.8771679731 | Q34: 0.7051626173 | R34: 0.5691814771 | S34: 0.4580274382 | T34: 0.3649334315 | U34: 0.285505793
D35: =D36-500 -> 1952 | E35: =(D35/E32+1-delta_a)/(1+3*delta_a) -> 3.914285714 | F35: =(D35/F32+1-delta_a)/(1+3*delta_a) -> 3.084353741 | G35: =(D35/G32+1-delta_a)/(1+3*delta_a) -> 2.573626374 | H35: =(D35/H32+1-delta_a)/(1+3*delta_a) -> 2.22764977 | I35: =(D35/I32+1-delta_a)/(1+3*delta_a) -> 1.977777778 | J35: =(D35/J32+1-delta_a)/(1+3*delta_a) -> 1.788850174 | K35: =(D35/K32+1-delta_a)/(1+3*delta_a) -> 1.640993789 | N35: 1952 | O35: 1.364632864 | P35: 1.126342151 | Q35: 0.9453159446 | R35: 0.8009471147 | S35: 0.68197388 | T35: 0.5815730527 | U35: 0.4953020271
C36: I_bar | D36: =D9 -> 2452 | E36: =(D36/E32+1-delta_a)/(1+3*delta_a) -> 4.807142857 | F36: =(D36/F32+1-delta_a)/(1+3*delta_a) -> 3.76462585 | G36: =(D36/G32+1-delta_a)/(1+3*delta_a) -> 3.123076923 | H36: =(D36/H32+1-delta_a)/(1+3*delta_a) -> 2.688479263 | I36: =(D36/I32+1-delta_a)/(1+3*delta_a) -> 2.374603175 | J36: =(D36/J32+1-delta_a)/(1+3*delta_a) -> 2.13728223 | K36: =(D36/K32+1-delta_a)/(1+3*delta_a) -> 1.951552795 | M36: I_bar | N36: 2452 | O36: 1.570102907 | P36: 1.325648481 | Q36: 1.138818709 | R36: 0.9889757039 | S36: 0.8648303391 | T36: 0.7595350359 | U36: 0.6686253608
D37: =D36+500 -> 2952 | E37: =(D37/E32+1-delta_a)/(1+3*delta_a) -> 5.7 | F37: =(D37/F32+1-delta_a)/(1+3*delta_a) -> 4.444897959 | G37: =(D37/G32+1-delta_a)/(1+3*delta_a) -> 3.672527473 | H37: =(D37/H32+1-delta_a)/(1+3*delta_a) -> 3.149308756 | I37: =(D37/I32+1-delta_a)/(1+3*delta_a) -> 2.771428571 | J37: =(D37/J32+1-delta_a)/(1+3*delta_a) -> 2.485714286 | K37: =(D37/K32+1-delta_a)/(1+3*delta_a) -> 2.262111801 | N37: 2952 | O37: 1.740466175 | P37: 1.491756912 | Q37: 1.30088011 | R37: 1.147182986 | S37: 1.019362917 | T37: 0.9105600572 | U37: 0.8162988023
D38: =D37+500 -> 3452 | E38: =(D38/E32+1-delta_a)/(1+3*delta_a) -> 6.592857143 | F38: =(D38/F32+1-delta_a)/(1+3*delta_a) -> 5.125170068 | G38: =(D38/G32+1-delta_a)/(1+3*delta_a) -> 4.221978022 | H38: =(D38/H32+1-delta_a)/(1+3*delta_a) -> 3.610138249 | I38: =(D38/I32+1-delta_a)/(1+3*delta_a) -> 3.168253968 | J38: =(D38/J32+1-delta_a)/(1+3*delta_a) -> 2.834146341 | K38: =(D38/K32+1-delta_a)/(1+3*delta_a) -> 2.572670807 | N38: 3452 | O38: 1.885986812 | P38: 1.634163708 | Q38: 1.440303744 | R38: 1.283746068 | S38: 1.153180637 | T38: 1.041740778 | U38: 0.944944584
D39: =D38+500 -> 3952 | E39: =(D39/E32+1-delta_a)/(1+3*delta_a) -> 7.485714286 | F39: =(D39/F32+1-delta_a)/(1+3*delta_a) -> 5.805442177 | G39: =(D39/G32+1-delta_a)/(1+3*delta_a) -> 4.771428571 | H39: =(D39/H32+1-delta_a)/(1+3*delta_a) -> 4.070967742 | I39: =(D39/I32+1-delta_a)/(1+3*delta_a) -> 3.565079365 | J39: =(D39/J32+1-delta_a)/(1+3*delta_a) -> 3.182578397 | K39: =(D39/K32+1-delta_a)/(1+3*delta_a) -> 2.883229814 | N39: 3952 | O39: 2.012996442 | P39: 1.758795784 | Q39: 1.562645751 | R39: 1.403880746 | S39: 1.271186316 | T39: 1.157691685 | U39: 1.058911129
A42: x | C42: Identifying p* from valuations
A43: x
C44: Input | D44: Value | E44: Note
C45: S&P 500 D/P (%) | D45: =Parameters!D17 -> 0.0106
C46: TIPS yield, 30yr (%) | D46: =Parameters!D18 -> 0.027
C47: Equity premium assumption | D47: =Parameters!D19 -> 0.05
C48: Implied real discount rate r | D48: =D46+D47 -> 0.077 | E48: TIPS + ERP
C49: Implied long-run growth g | D49: =D48-D45 -> 0.0664 | E49: r − D/P
C50: Implied p* | D50: =D49/(exp_xi-1) -> 0.03932532751

Sheet Model 1 Alternative Calibration (hidden)
C2: Model 1 - Investment and GDP Paths
C3: Wachter and Wachter (2026): What Investment Data Implies about the AI Transition
A5: x | C5: Parameters
C7: Goal Seek Helpers
C8: local exp_xi | D8: 3.484671119
C9: K_t mismatch | D9: =G20-H19 -> 0
A11: x | C11: Investment and GDP Paths
C13: Year | D13: z_at | E13: p_t | F13: omega(p_t) | G13: K_t (entry) | H13: K* (z, p) | I13: I* | J13: Y_a | K13: GDP ($T) | L13: Cum. GDP Growth | M13: AI Share
C14: 2022 | D14: =z0 -> 815.0111656 | E14: 0 | F14: =(1-E14)+E14*exp_xi^(1-alpha) -> 1 | G14: =K0 -> 620 | H14: =D14*(alpha*F14/(r_a+delta_a))^(1/(1-alpha)) -> 620 | I14: =TRANSPOSE(CAPEX!D13:I13) -> 155 | J14: =D14^(1-alpha)*G14^alpha -> 744 | K14: =(J14+Yn0)/1000 -> 24 | M14: =J14/(K14*1000) -> 0.031
C15: 2023 | D15: =D14 -> 815.0111656 | E15: 0 | F15: 1 | G15: =G14*(1-delta_a)+I14 -> 620 | H15: 620 | I15: 150 | J15: =D15^(1-alpha)*G15^alpha -> 744 | K15: 24 | L15: =K15/(GDP_0/1000) - 1 -> 0 | M15: =J15/(K15*1000) -> 0.031
C16: 2024 | D16: =D15*D8 -> 2840.04587 | E16: 0 | F16: 1 | G16: 615 | H16: 2160.496094 | I16: 226 | J16: =D16^(1-alpha)*G16^alpha -> 1705.461585 | K16: 24.96146159 | L16: 0.04006089939 | M16: 0.06832378703
C17: 2025 | D17: =D16 -> 2840.04587 | E17: 0 | F17: 1 | G17: 687.25 | H17: 2160.496094 | I17: 381 | J17: 1769.790336 | K17: 25.02579034 | L17: 0.04274126398 | M17: 0.0707186591
C18: 2026 | D18: =D17 -> 2840.04587 | E18: 0 | F18: 1 | G18: 896.4375 | H18: 2160.496094 | I18: 755 | J18: 1933.705095 | K18: 25.1897051 | L18: 0.04957104564 | M18: 0.07676569011
C19: 2027 | D19: =D18 -> 2840.04587 | E19: 0 | F19: 1 | G19: 1427.328125 | H19: =D19*(alpha*F19/(r_a+delta_a))^(1/(1-alpha)) -> 2160.496094 | I19: 1090 | J19: 2258.004714 | K19: 25.51400471 | L19: 0.06308352973 | M19: 0.08850059953
C20: 2028 | D20: =D19 -> 2840.04587 | E20: =p_max -> 0.5 | F20: 1.466735793 | G20: 2160.496094 | H20: 3837.791005 | I20: =IF($D$8, delta_a * G20 + (1/theta_a) * (H20-G20), H20-G20*(1-delta_a)) -> 1099.222327 | J20: 2592.595313 | K20: 25.84859531 | L20: 0.07702480469 | M20: 0.1002992728

Sheet Model 1 - Inv & GDP Paths
C2: Model 1 - Investment and GDP Paths
C3: Wachter and Wachter (2026): What Investment Data Implies about the AI Transition
A5: x | C5: Parameters
C7: Toggles
C8: Investment Friction | D8: FALSE
C9: Scenario | D9: 2
C10: Selected Scenario | D10: =OFFSET(C13, 0, D9) -> Transformative-a
C12: Scenario Assumptions
C13: Year | D13: Moderate | E13: Transformative-a | F13: Transformative-b | G13: Singularity
C14: 2029 | D14: =FALSE -> FALSE | E14: =TRUE -> TRUE | F14: =FALSE -> FALSE | G14: =TRUE -> TRUE
C15: 2030 | D15: =FALSE -> FALSE | E15: =FALSE -> FALSE | F15: =TRUE -> TRUE | G15: =TRUE -> TRUE
A17: x | C17: Investment and GDP Paths
C19: Year | D19: z_at | E19: p_t | F19: omega(p_t) | G19: K_t (entry) | H19: K* (z, p) | I19: I* | J19: Y_a | K19: GDP ($T) | L19: Cum. GDP Growth | M19: AI Share
C20: 2022 | D20: =z0 -> 815.0111656 | E20: 0 | F20: =(1-E20)+E20*exp_xi^(1-alpha) -> 1 | G20: =K0 -> 620 | H20: =D20*(alpha*F20/(r_a+delta_a))^(1/(1-alpha)) -> 620 | I20: =TRANSPOSE(CAPEX!D13:I13) -> 155 | J20: =D20^(1-alpha)*G20^alpha -> 744 | K20: =(J20+Yn0)/1000 -> 24 | M20: =J20/(K20*1000) -> 0.031
C21: 2023 | D21: =D20 -> 815.0111656 | E21: 0 | F21: 1 | G21: =G20*(1-delta_a)+I20 -> 620 | H21: 620 | I21: 150 | J21: =D21^(1-alpha)*G21^alpha -> 744 | K21: 24 | L21: =K21/(GDP_0/1000) - 1 -> 0 | M21: =J21/(K21*1000) -> 0.031
C22: 2024 | D22: =D21 * exp_xi -> 2191.140617 | E22: 0 | F22: 1 | G22: 615 | H22: 1666.857143 | I22: 226 | J22: =D22^(1-alpha)*G22^alpha -> 1434.625474 | K22: 24.69062547 | L22: 0.02877606143 | M22: 0.05810405556
C23: 2025 | D23: =D22 -> 2191.140617 | E23: 0 | F23: 1 | G23: 687.25 | H23: 1666.857143 | I23: 381 | J23: 1488.738487 | K23: 24.74473849 | L23: 0.03103077028 | M23: 0.06016383998
C24: 2026 | D24: =D23 -> 2191.140617 | E24: 0 | F24: 1 | G24: 896.4375 | H24: 1666.857143 | I24: 755 | J24: 1626.622736 | K24: 24.88262274 | L24: 0.03677594732 | M24: 0.06537183612
C25: 2027 | D25: =D24 -> 2191.140617 | E25: 0 | F25: 1 | G25: 1427.328125 | H25: =D25*(alpha*F25/(r_a+delta_a))^(1/(1-alpha)) -> 1666.857143 | I25: 1090 | J25: 1899.421899 | K25: 25.1554219 | L25: 0.04814257913 | M25: 0.07550745548
C26: 2028 | D26: =D25 -> 2191.140617 | E26: =p_max -> 0.5 | F26: 1.466735793 | G26: 2160.496094 | H26: 2960.916879 | I26: =IF($D$8, delta_a * G26 + (1/theta_a) * (H26-G26), H26-G26*(1-delta_a)) -> 1340.544808 | J26: 2180.877782 | K26: 25.43687778 | L26: 0.0598699076 | M26: 0.08573685029
C27: 2029 | D27: =IF(OFFSET(C14, 0, $D$9),D26*exp_xi, D26) -> 5890.836112 | E27: =p_max -> 0.5 | F27: 1.466735793 | G27: 2960.916879 | H27: 7960.363627 | I27: =IF($D$8, delta_a * G27 + (1/theta_a) * (H27-G27), H27-G27*(1-delta_a)) -> 5739.675968 | J27: 4683.746327 | K27: 27.93974633 | L27: 0.164156097 | M27: 0.1676373963
C28: 2030 | D28: =IF(OFFSET(C15, 0, $D$9),D27*exp_xi, D27) -> 5890.836112 | E28: =p_star -> 0.03932532751 | F28: 1.036709076 | G28: 7960.363627 | H28: 4730.318922 | I28: =IF($D$8, delta_a * G28 + (1/theta_a) * (H28-G28), H28-G28*(1-delta_a)) -> -1239.953798 | J28: 6512.717832 | K28: 29.76871783 | L28: 0.240363243 | M28: 0.2187772369
C29: 2031 | D29: =D28 -> 5890.836112 | E29: =p_star -> 0.03932532751 | F29: 1.036709076 | G29: 4730.318922 | H29: 4730.318922 | I29: =IF($D$8, delta_a * G29 + (1/theta_a) * (H29-G29), H29-G29*(1-delta_a)) -> 1182.57973 | J29: 5475.386334 | K29: 28.73138633 | L29: 0.1971410973 | M29: 0.1905716024
C30: 2032 | D30: =D29 -> 5890.836112 | E30: =p_star -> 0.03932532751 | F30: 1.036709076 | G30: 4730.318922 | H30: 4730.318922 | I30: =IF($D$8, delta_a * G30 + (1/theta_a) * (H30-G30), H30-G30*(1-delta_a)) -> 1182.57973 | J30: 5475.386334 | K30: 28.73138633 | L30: 0.1971410973 | M30: 0.1905716024
A32: x | C32: Scenario Analysis
C33: Press Alt + F8, and click RunOpenModelScenarioAnalysis. VBA script toggles through settings and outputs results below
A34: x | C34: Investment I* ($B)
C35: Year | D35: No friction / Moderate | E35: No friction / Trans-a | F35: No friction / Trans-b | G35: No friction / Singularity | H35: Friction / Moderate | I35: Friction / Trans-a | J35: Friction / Trans-b | K35: Friction / Singularity
C36: 2022 | D36: 155 | E36: 155 | F36: 155 | G36: 155 | H36: 155 | I36: 155 | J36: 155 | K36: 155 | L36: 1649.270828 | M36: 24.90527083
C37: 2023 | D37: 150 | E37: 150 | F37: 150 | G37: 150 | H37: 150 | I37: 150 | J37: 150 | K37: 150 | L37: 1925.868278 | M37: 25.18186828
C38: 2024 | D38: 226 | E38: 226 | F38: 226 | G38: 226 | H38: 226 | I38: 226 | J38: 226 | K38: 226 | L38: 2042.148571 | M38: 25.29814857
C39: 2025 | D39: 381 | E39: 381 | F39: 381 | G39: 381 | H39: 381 | I39: 381 | J39: 381 | K39: 381 | L39: 2209.737574 | M39: 25.46573757
C40: 2026 | D40: 755 | E40: 755 | F40: 755 | G40: 755 | H40: 755 | I40: 755 | J40: 755 | K40: 755 | L40: 4525.968258 | M40: 27.78196826
C41: 2027 | D41: 1090 | E41: 1090 | F41: 1090 | G41: 1090 | H41: 1090 | I41: 1090 | J41: 1090 | K41: 1090 | L41: 4983.433504 | M41: 28.2394335
C42: 2028 | D42: 1710.774021 | E42: 1710.774021 | F42: 1710.774021 | G42: 1710.774021 | H42: 848.067531 | I42: 848.067531 | J42: 848.067531 | K42: 848.067531
C43: 2029 | D43: 740.2292197 | E43: 5739.675968 | F43: 740.2292197 | G43: 5739.675968 | H43: 812.1214272 | I43: 2478.603677 | J43: 812.1214272 | K43: 2478.603677
C44: 2030 | D44: -461.2101032 | E44: -1239.953798 | F44: 2509.631263 | G44: 6747.091607 | H44: 387.6775837 | I44: 1239.084518 | J44: 1377.958039 | K44: 3901.432987
C45: 2031 | D45: 439.869389 | E45: 1182.57973 | F45: 1182.57973 | G45: 3179.341082 | H45: 405.0748521 | I45: 1220.249589 | J45: 1312.831936 | K45: 3660.735685
C46: 2032 | D46: 439.869389 | E46: 1182.57973 | F46: 1182.57973 | G46: 3179.341082 | H46: 416.6730311 | I46: 1207.69297 | J46: 1269.414534 | K46: 3500.270817
A49: x | C49: GDP Growth (%)
C50: Year | D50: No friction / Moderate | E50: No friction / Trans-a | F50: No friction / Trans-b | G50: No friction / Singularity | H50: Friction / Moderate | I50: Friction / Trans-a | J50: Friction / Trans-b | K50: Friction / Singularity
C51: 2022
C52: 2023 | D52: 0 | E52: 0 | F52: 0 | G52: 0 | H52: 0 | I52: 0 | J52: 0 | K52: 0
C53: 2024 | D53: 0.02877606143 | E53: 0.02877606143 | F53: 0.02877606143 | G53: 0.02877606143 | H53: 0.02877606143 | I53: 0.02877606143 | J53: 0.02877606143 | K53: 0.02877606143
C54: 2025 | D54: 0.03103077028 | E54: 0.03103077028 | F54: 0.03103077028 | G54: 0.03103077028 | H54: 0.03103077028 | I54: 0.03103077028 | J54: 0.03103077028 | K54: 0.03103077028
C55: 2026 | D55: 0.03677594732 | E55: 0.03677594732 | F55: 0.03677594732 | G55: 0.03677594732 | H55: 0.03677594732 | I55: 0.03677594732 | J55: 0.03677594732 | K55: 0.03677594732
C56: 2027 | D56: 0.04814257913 | E56: 0.04814257913 | F56: 0.04814257913 | G56: 0.04814257913 | H56: 0.04814257913 | I56: 0.04814257913 | J56: 0.04814257913 | K56: 0.04814257913
C57: 2028 | D57: 0.05234285714 | E57: 0.05234285714 | F57: 0.05234285714 | G57: 0.05234285714 | H57: 0.05234285714 | I57: 0.05234285714 | J57: 0.05234285714 | K57: 0.05234285714
C58: 2029 | D58: 0.06993559091 | E58: 0.164156097 | F58: 0.06993559091 | G58: 0.164156097 | H58: 0.05898813868 | I58: 0.1429895091 | J58: 0.05898813868 | K58: 0.1429895091
C59: 2030 | D59: 0.06993559091 | E59: 0.240363243 | F59: 0.164156097 | G59: 0.4936731196 | H59: 0.06292452521 | I59: 0.1856735365 | J59: 0.1506004007 | K59: 0.3879321261
C60: 2031 | D60: 0.05385879003 | E60: 0.1971410973 | F60: 0.1971410973 | G60: 0.582352609 | H60: 0.06010087161 | I60: 0.1896292766 | J60: 0.1685887725 | K60: 0.4702381571
C61: 2032 | D61: 0.05385879003 | E61: 0.1971410973 | F61: 0.1971410973 | G61: 0.582352609 | H61: 0.05811658081 | I61: 0.1921896098 | J61: 0.1789820549 | K61: 0.5128642051
A64: x | C64: AI Share (%)
C65: Year | D65: No friction / Moderate | E65: No friction / Trans-a | F65: No friction / Trans-b | G65: No friction / Singularity | H65: Friction / Moderate | I65: Friction / Trans-a | J65: Friction / Trans-b | K65: Friction / Singularity
C66: 2022 | D66: 0.031 | E66: 0.031 | F66: 0.031 | G66: 0.031 | H66: 0.031 | I66: 0.031 | J66: 0.031 | K66: 0.031
C67: 2023 | D67: 0.031 | E67: 0.031 | F67: 0.031 | G67: 0.031 | H67: 0.031 | I67: 0.031 | J67: 0.031 | K67: 0.031
C68: 2024 | D68: 0.05810405556 | E68: 0.05810405556 | F68: 0.05810405556 | G68: 0.05810405556 | H68: 0.05810405556 | I68: 0.05810405556 | J68: 0.05810405556 | K68: 0.05810405556
C69: 2025 | D69: 0.06016383998 | E69: 0.06016383998 | F69: 0.06016383998 | G69: 0.06016383998 | H69: 0.06016383998 | I69: 0.06016383998 | J69: 0.06016383998 | K69: 0.06016383998
C70: 2026 | D70: 0.06537183612 | E70: 0.06537183612 | F70: 0.06537183612 | G70: 0.06537183612 | H70: 0.06537183612 | I70: 0.06537183612 | J70: 0.06537183612 | K70: 0.06537183612
C71: 2027 | D71: 0.07550745548 | E71: 0.07550745548 | F71: 0.07550745548 | G71: 0.07550745548 | H71: 0.07550745548 | I71: 0.07550745548 | J71: 0.07550745548 | K71: 0.07550745548
C72: 2028 | D72: 0.07919743701 | E72: 0.07919743701 | F72: 0.07919743701 | G72: 0.07919743701 | H72: 0.07919743701 | I72: 0.07919743701 | J72: 0.07919743701 | K72: 0.07919743701
C73: 2029 | D73: 0.09433800667 | E73: 0.1676373963 | F73: 0.09433800667 | G73: 0.1676373963 | H73: 0.08497558697 | I73: 0.1522231899 | J73: 0.08497558697 | K73: 0.1522231899
C74: 2030 | D74: 0.09433800667 | E74: 0.2187772369 | F74: 0.1676373963 | G74: 0.351263682 | H74: 0.08836424693 | I74: 0.1827429978 | J74: 0.1578309903 | K74: 0.3018390584
C75: 2031 | D75: 0.08052197395 | E75: 0.1905716024 | F75: 0.1905716024 | G75: 0.3876206893 | H75: 0.08593604066 | I75: 0.1854605304 | J75: 0.1707947032 | K75: 0.3409231047
C76: 2032 | D76: 0.08052197395 | E76: 0.1905716024 | F76: 0.1905716024 | G76: 0.3876206893 | H76: 0.08422189239 | I76: 0.1872098264 | J76: 0.1781045386 | K76: 0.3594930749
A78: x | C78: Value Creation
C80: p_star | D80: =p_star -> 0.03932532751
C81: Omega_star | D81: =(1-D80)+D80*exp_xi^(1-alpha) -> 1.036709076
C83: Scenario | E83: z_at | F83: K_star | G83: Capital Claim on Y_a | H83: Y_a | I83: Y_a/Y
E84: =D30 -> 5890.836112 | F84: =E84*(alpha*$D$81/(r_a+delta_a))^(1/(1-alpha)) -> 4730.318922
C85: Moderate | D85: 1 | E85: 2191.140617 | F85: =E85*(alpha*$D$81/(r_a+delta_a))^(1/(1-alpha)) -> 1759.477556 | G85: =(r_a + delta_a)/$D$81*F85 -> 678.8703203 | H85: =G85/alpha -> 2036.610961 | I85: =H85/(H85+Yn0) -> 0.08052197395
C86: Transformative-a | D86: 2 | E86: 5890.836112 | F86: =E86*(alpha*$D$81/(r_a+delta_a))^(1/(1-alpha)) -> 4730.318922 | G86: =(r_a + delta_a)/$D$81*F86 -> 1825.128778 | H86: =G86/alpha -> 5475.386334 | I86: =H86/(H86+Yn0) -> 0.1905716024
C87: Transformative-b | D87: 3 | E87: 5890.836112 | F87: =E87*(alpha*$D$81/(r_a+delta_a))^(1/(1-alpha)) -> 4730.318922 | G87: =(r_a + delta_a)/$D$81*F87 -> 1825.128778 | H87: =G87/alpha -> 5475.386334 | I87: =H87/(H87+Yn0) -> 0.1905716024
C88: Singularity | D88: 4 | E88: 15837.39073 | F88: =E88*(alpha*$D$81/(r_a+delta_a))^(1/(1-alpha)) -> 12717.36433 | G88: =(r_a + delta_a)/$D$81*F88 -> 4906.820872 | H88: =G88/alpha -> 14720.46261 | I88: =H88/(H88+Yn0) -> 0.3876206893
A90: x | C90: Long Run GDP
C91: Press Alt + F8, and click RunMonteCarlo. VBA script runs simulation and returns output to the cells below
C93: Moderate - GDP Growth (%)
C94: Year | D94: Mean | E94: P10 | F94: P25 | G94: P75 | H94: P90
C95: 2030 | D95: 0.05930351771 | E95: 0.05385879003 | F95: 0.05385879003 | G95: 0.05385879003 | H95: 0.05385879003
C96: 2031 | D96: 0.06520344733 | E96: 0.05385879003 | F96: 0.05385879003 | G96: 0.05385879003 | H96: 0.05385879003
C97: 2032 | D97: 0.07199874339 | E97: 0.05385879003 | F97: 0.05385879003 | G97: 0.05385879003 | H97: 0.1971410973
C98: 2033 | D98: 0.07877453457 | E98: 0.05385879003 | F98: 0.05385879003 | G98: 0.05385879003 | H98: 0.1971410973
C99: 2034 | D99: 0.08693019611 | E99: 0.05385879003 | F99: 0.05385879003 | G99: 0.05385879003 | H99: 0.1971410973
C100: 2035 | D100: 0.09461137533 | E100: 0.05385879003 | F100: 0.05385879003 | G100: 0.05385879003 | H100: 0.1971410973
C101: 2036 | D101: 0.1035130642 | E101: 0.05385879003 | F101: 0.05385879003 | G101: 0.05385879003 | H101: 0.1971410973
C102: 2037 | D102: 0.1120427396 | E102: 0.05385879003 | F102: 0.05385879003 | G102: 0.1971410973 | H102: 0.1971410973
C103: 2038 | D103: 0.1210849751 | E103: 0.05385879003 | F103: 0.05385879003 | G103: 0.1971410973 | H103: 0.1971410973
C104: 2039 | D104: 0.1305584016 | E104: 0.05385879003 | F104: 0.05385879003 | G104: 0.1971410973 | H104: 0.1971410973
C105: 2040 | D105: 0.1425240523 | E105: 0.05385879003 | F105: 0.05385879003 | G105: 0.1971410973 | H105: 0.1971410973
C106: 2041 | D106: 0.1546954329 | E106: 0.05385879003 | F106: 0.05385879003 | G106: 0.1971410973 | H106: 0.1971410973
C107: 2042 | D107: 0.1657817522 | E107: 0.05385879003 | F107: 0.05385879003 | G107: 0.1971410973 | H107: 0.1971410973
C108: 2043 | D108: 0.179153649 | E108: 0.05385879003 | F108: 0.05385879003 | G108: 0.1971410973 | H108: 0.582352609
C109: 2044 | D109: 0.1935250367 | E109: 0.05385879003 | F109: 0.05385879003 | G109: 0.1971410973 | H109: 0.582352609
C110: 2045 | D110: 0.2064637558 | E110: 0.05385879003 | F110: 0.05385879003 | G110: 0.1971410973 | H110: 0.582352609
C111: 2046 | D111: 0.2208878632 | E111: 0.05385879003 | F111: 0.05385879003 | G111: 0.1971410973 | H111: 0.582352609
C112: 2047 | D112: 0.2379347282 | E112: 0.05385879003 | F112: 0.05385879003 | G112: 0.1971410973 | H112: 0.582352609
C113: 2048 | D113: 0.259407738 | E113: 0.05385879003 | F113: 0.05385879003 | G113: 0.1971410973 | H113: 0.582352609
C114: 2049 | D114: 0.2766873705 | E114: 0.05385879003 | F114: 0.05385879003 | G114: 0.1971410973 | H114: 0.582352609
C115: 2050 | D115: 0.2989433522 | E115: 0.05385879003 | F115: 0.05385879003 | G115: 0.1971410973 | H115: 0.582352609
C117: Moderate - AI Share (%)
C118: Year | D118: Mean | E118: P10 | F118: P25 | G118: P75 | H118: P90
C119: 2030 | D119: 0.08470385983 | E119: 0.08052197395 | F119: 0.08052197395 | G119: 0.08052197395 | H119: 0.08052197395
C120: 2031 | D120: 0.0890377347 | E120: 0.08052197395 | F120: 0.08052197395 | G120: 0.08052197395 | H120: 0.08052197395
C121: 2032 | D121: 0.09388540737 | E121: 0.08052197395 | F121: 0.08052197395 | G121: 0.08052197395 | H121: 0.1905716024
C122: 2033 | D122: 0.09857975521 | E122: 0.08052197395 | F122: 0.08052197395 | G122: 0.08052197395 | H122: 0.1905716024
C123: 2034 | D123: 0.1039347847 | E123: 0.08052197395 | F123: 0.08052197395 | G123: 0.08052197395 | H123: 0.1905716024
C124: 2035 | D124: 0.1088265654 | E124: 0.08052197395 | F124: 0.08052197395 | G124: 0.08052197395 | H124: 0.1905716024
C125: 2036 | D125: 0.1140986182 | E125: 0.08052197395 | F125: 0.08052197395 | G125: 0.08052197395 | H125: 0.1905716024
C126: 2037 | D126: 0.1192746318 | E126: 0.08052197395 | F126: 0.08052197395 | G126: 0.1905716024 | H126: 0.1905716024
C127: 2038 | D127: 0.1244400962 | E127: 0.08052197395 | F127: 0.08052197395 | G127: 0.1905716024 | H127: 0.1905716024
C128: 2039 | D128: 0.1293366746 | E128: 0.08052197395 | F128: 0.08052197395 | G128: 0.1905716024 | H128: 0.1905716024
C129: 2040 | D129: 0.1356789778 | E129: 0.08052197395 | F129: 0.08052197395 | G129: 0.1905716024 | H129: 0.1905716024
C130: 2041 | D130: 0.1413101347 | E130: 0.08052197395 | F130: 0.08052197395 | G130: 0.1905716024 | H130: 0.1905716024
C131: 2042 | D131: 0.1468193313 | E131: 0.08052197395 | F131: 0.08052197395 | G131: 0.1905716024 | H131: 0.1905716024
C132: 2043 | D132: 0.1529654262 | E132: 0.08052197395 | F132: 0.08052197395 | G132: 0.1905716024 | H132: 0.3876206893
C133: 2044 | D133: 0.1588580331 | E133: 0.08052197395 | F133: 0.08052197395 | G133: 0.1905716024 | H133: 0.3876206893
C134: 2045 | D134: 0.1648634301 | E134: 0.08052197395 | F134: 0.08052197395 | G134: 0.1905716024 | H134: 0.3876206893
C135: 2046 | D135: 0.1703176151 | E135: 0.08052197395 | F135: 0.08052197395 | G135: 0.1905716024 | H135: 0.3876206893
C136: 2047 | D136: 0.1767495477 | E136: 0.08052197395 | F136: 0.08052197395 | G136: 0.1905716024 | H136: 0.3876206893
C137: 2048 | D137: 0.1828842796 | E137: 0.08052197395 | F137: 0.08052197395 | G137: 0.1905716024 | H137: 0.3876206893
C138: 2049 | D138: 0.1890050715 | E138: 0.08052197395 | F138: 0.08052197395 | G138: 0.1905716024 | H138: 0.3876206893
C139: 2050 | D139: 0.1954693389 | E139: 0.08052197395 | F139: 0.08052197395 | G139: 0.1905716024 | H139: 0.3876206893
C142: Transformative - GDP Growth (%)
C143: Year | D143: Mean | E143: P10 | F143: P25 | G143: P75 | H143: P90
C144: 2030 | D144: 0.2128192058 | E144: 0.1971410973 | F144: 0.1971410973 | G144: 0.1971410973 | H144: 0.1971410973
C145: 2031 | D145: 0.2286349609 | E145: 0.1971410973 | F145: 0.1971410973 | G145: 0.1971410973 | H145: 0.1971410973
C146: 2032 | D146: 0.245680776 | E146: 0.1971410973 | F146: 0.1971410973 | G146: 0.1971410973 | H146: 0.582352609
C147: 2033 | D147: 0.2608498372 | E147: 0.1971410973 | F147: 0.1971410973 | G147: 0.1971410973 | H147: 0.582352609
C148: 2034 | D148: 0.2786539791 | E148: 0.1971410973 | F148: 0.1971410973 | G148: 0.1971410973 | H148: 0.582352609
C149: 2035 | D149: 0.2974937542 | E149: 0.1971410973 | F149: 0.1971410973 | G149: 0.1971410973 | H149: 0.582352609
C150: 2036 | D150: 0.3198965781 | E150: 0.1971410973 | F150: 0.1971410973 | G150: 0.1971410973 | H150: 0.582352609
C151: 2037 | D151: 0.3424334063 | E151: 0.1971410973 | F151: 0.1971410973 | G151: 0.582352609 | H151: 0.582352609
C152: 2038 | D152: 0.3669640026 | E152: 0.1971410973 | F152: 0.1971410973 | G152: 0.582352609 | H152: 0.582352609
C153: 2039 | D153: 0.3935214811 | E153: 0.1971410973 | F153: 0.1971410973 | G153: 0.582352609 | H153: 0.582352609
C154: 2040 | D154: 0.4221949463 | E154: 0.1971410973 | F154: 0.1971410973 | G154: 0.582352609 | H154: 0.582352609
C155: 2041 | D155: 0.4507135742 | E155: 0.1971410973 | F155: 0.1971410973 | G155: 0.582352609 | H155: 0.582352609
C156: 2042 | D156: 0.4870844573 | E156: 0.1971410973 | F156: 0.1971410973 | G156: 0.582352609 | H156: 0.582352609
C157: 2043 | D157: 0.5250851039 | E157: 0.1971410973 | F157: 0.1971410973 | G157: 0.582352609 | H157: 1.61798577
C158: 2044 | D158: 0.5612490543 | E158: 0.1971410973 | F158: 0.1971410973 | G158: 0.582352609 | H158: 1.61798577
C159: 2045 | D159: 0.6002565649 | E159: 0.1971410973 | F159: 0.1971410973 | G159: 0.582352609 | H159: 1.61798577
C160: 2046 | D160: 0.6490138098 | E160: 0.1971410973 | F160: 0.1971410973 | G160: 0.582352609 | H160: 1.61798577
C161: 2047 | D161: 0.6941682551 | E161: 0.1971410973 | F161: 0.1971410973 | G161: 0.582352609 | H161: 1.61798577
C162: 2048 | D162: 0.7528552981 | E162: 0.1971410973 | F162: 0.1971410973 | G162: 0.582352609 | H162: 1.61798577
C163: 2049 | D163: 0.8105637276 | E163: 0.1971410973 | F163: 0.1971410973 | G163: 0.582352609 | H163: 1.61798577
C164: 2050 | D164: 0.869568174 | E164: 0.1971410973 | F164: 0.1971410973 | G164: 0.582352609 | H164: 1.61798577
C166: Transformative - AI Share (%)
C167: Year | D167: Mean | E167: P10 | F167: P25 | G167: P75 | H167: P90
C168: 2030 | D168: 0.1985915003 | E168: 0.1905716024 | F168: 0.1905716024 | G168: 0.1905716024 | H168: 0.1905716024
C169: 2031 | D169: 0.2063655427 | E169: 0.1905716024 | F169: 0.1905716024 | G169: 0.1905716024 | H169: 0.1905716024
C170: 2032 | D170: 0.2141566789 | E170: 0.1905716024 | F170: 0.1905716024 | G170: 0.1905716024 | H170: 0.3876206893
C171: 2033 | D171: 0.2208811275 | E171: 0.1905716024 | F171: 0.1905716024 | G171: 0.1905716024 | H171: 0.3876206893
C172: 2034 | D172: 0.2283330435 | E172: 0.1905716024 | F172: 0.1905716024 | G172: 0.1905716024 | H172: 0.3876206893
C173: 2035 | D173: 0.236027207 | E173: 0.1905716024 | F173: 0.1905716024 | G173: 0.1905716024 | H173: 0.3876206893
C174: 2036 | D174: 0.2439330103 | E174: 0.1905716024 | F174: 0.1905716024 | G174: 0.1905716024 | H174: 0.3876206893
C175: 2037 | D175: 0.2522403144 | E175: 0.1905716024 | F175: 0.1905716024 | G175: 0.3876206893 | H175: 0.3876206893
C176: 2038 | D176: 0.2600907681 | E176: 0.1905716024 | F176: 0.1905716024 | G176: 0.3876206893 | H176: 0.3876206893
C177: 2039 | D177: 0.26866884 | E177: 0.1905716024 | F177: 0.1905716024 | G177: 0.3876206893 | H177: 0.3876206893
C178: 2040 | D178: 0.2770442181 | E178: 0.1905716024 | F178: 0.1905716024 | G178: 0.3876206893 | H178: 0.3876206893
C179: 2041 | D179: 0.2850052593 | E179: 0.1905716024 | F179: 0.1905716024 | G179: 0.3876206893 | H179: 0.3876206893
C180: 2042 | D180: 0.2935982654 | E180: 0.1905716024 | F180: 0.1905716024 | G180: 0.3876206893 | H180: 0.3876206893
C181: 2043 | D181: 0.301913841 | E181: 0.1905716024 | F181: 0.1905716024 | G181: 0.3876206893 | H181: 0.629868118
C182: 2044 | D182: 0.3097952957 | E182: 0.1905716024 | F182: 0.1905716024 | G182: 0.3876206893 | H182: 0.629868118
C183: 2045 | D183: 0.3182315451 | E183: 0.1905716024 | F183: 0.1905716024 | G183: 0.3876206893 | H183: 0.629868118
C184: 2046 | D184: 0.3274964066 | E184: 0.1905716024 | F184: 0.1905716024 | G184: 0.3876206893 | H184: 0.629868118
C185: 2047 | D185: 0.3359307624 | E185: 0.1905716024 | F185: 0.1905716024 | G185: 0.3876206893 | H185: 0.629868118
C186: 2048 | D186: 0.3443650342 | E186: 0.1905716024 | F186: 0.1905716024 | G186: 0.3876206893 | H186: 0.629868118
C187: 2049 | D187: 0.3529023169 | E187: 0.1905716024 | F187: 0.1905716024 | G187: 0.3876206893 | H187: 0.629868118
C188: 2050 | D188: 0.3614950353 | E188: 0.1905716024 | F188: 0.1905716024 | G188: 0.3876206893 | H188: 0.629868118
C191: Singularity - GDP Growth (%)
C192: Year | D192: Mean | E192: P10 | F192: P25 | G192: P75 | H192: P90
C193: 2030 | D193: 0.6249171319 | E193: 0.582352609 | F193: 0.582352609 | G193: 0.582352609 | H193: 0.582352609
C194: 2031 | D194: 0.6704475745 | E194: 0.582352609 | F194: 0.582352609 | G194: 0.582352609 | H194: 0.582352609
C195: 2032 | D195: 0.7174295263 | E195: 0.582352609 | F195: 0.582352609 | G195: 0.582352609 | H195: 1.61798577
C196: 2033 | D196: 0.7672887808 | E196: 0.582352609 | F196: 0.582352609 | G196: 0.582352609 | H196: 1.61798577
C197: 2034 | D197: 0.823833088 | E197: 0.582352609 | F197: 0.582352609 | G197: 0.582352609 | H197: 1.61798577
C198: 2035 | D198: 0.8793962359 | E198: 0.582352609 | F198: 0.582352609 | G198: 0.582352609 | H198: 1.61798577
C199: 2036 | D199: 0.9347378688 | E199: 0.582352609 | F199: 0.582352609 | G199: 1.61798577 | H199: 1.61798577
C200: 2037 | D200: 1.007544941 | E200: 0.582352609 | F200: 0.582352609 | G200: 1.61798577 | H200: 1.61798577
C201: 2038 | D201: 1.079822999 | E201: 0.582352609 | F201: 0.582352609 | G201: 1.61798577 | H201: 1.61798577
C202: 2039 | D202: 1.151505651 | E202: 0.582352609 | F202: 0.582352609 | G202: 1.61798577 | H202: 1.61798577
C203: 2040 | D203: 1.216529541 | E203: 0.582352609 | F203: 0.582352609 | G203: 1.61798577 | H203: 1.61798577
C204: 2041 | D204: 1.300138451 | E204: 0.582352609 | F204: 0.582352609 | G204: 1.61798577 | H204: 1.61798577
C205: 2042 | D205: 1.392620969 | E205: 0.582352609 | F205: 0.582352609 | G205: 1.61798577 | H205: 1.61798577
C206: 2043 | D206: 1.502324815 | E206: 0.582352609 | F206: 0.582352609 | G206: 1.61798577 | H206: 4.402264047
C207: 2044 | D207: 1.604192694 | E207: 0.582352609 | F207: 0.582352609 | G207: 1.61798577 | H207: 4.402264047
C208: 2045 | D208: 1.717913959 | E208: 0.582352609 | F208: 0.582352609 | G208: 1.61798577 | H208: 4.402264047
C209: 2046 | D209: 1.809946578 | E209: 0.582352609 | F209: 0.582352609 | G209: 1.61798577 | H209: 4.402264047
C210: 2047 | D210: 1.937356084 | E210: 0.582352609 | F210: 0.582352609 | G210: 1.61798577 | H210: 4.402264047
C211: 2048 | D211: 2.079028362 | E211: 0.582352609 | F211: 0.582352609 | G211: 1.61798577 | H211: 4.402264047
C212: 2049 | D212: 2.210362771 | E212: 0.582352609 | F212: 0.582352609 | G212: 1.61798577 | H212: 4.402264047
C213: 2050 | D213: 2.350874335 | E213: 0.582352609 | F213: 0.582352609 | G213: 1.61798577 | H213: 4.402264047
C215: Singularity - AI Share (%)
C216: Year | D216: Mean | E216: P10 | F216: P25 | G216: P75 | H216: P90
C217: 2030 | D217: 0.3975770586 | E217: 0.3876206893 | F217: 0.3876206893 | G217: 0.3876206893 | H217: 0.3876206893
C218: 2031 | D218: 0.4075824729 | E218: 0.3876206893 | F218: 0.3876206893 | G218: 0.3876206893 | H218: 0.3876206893
C219: 2032 | D219: 0.4171905899 | E219: 0.3876206893 | F219: 0.3876206893 | G219: 0.3876206893 | H219: 0.629868118
C220: 2033 | D220: 0.4264516192 | E220: 0.3876206893 | F220: 0.3876206893 | G220: 0.3876206893 | H220: 0.629868118
C221: 2034 | D221: 0.4359729392 | E221: 0.3876206893 | F221: 0.3876206893 | G221: 0.3876206893 | H221: 0.629868118
C222: 2035 | D222: 0.4452452245 | E222: 0.3876206893 | F222: 0.3876206893 | G222: 0.3876206893 | H222: 0.629868118
C223: 2036 | D223: 0.4538683783 | E223: 0.3876206893 | F223: 0.3876206893 | G223: 0.629868118 | H223: 0.629868118
... 45 more rows

Sheet Model 2 - Riskfree and ERP
C2: Model 2
C3: Wachter and Wachter (2026): What Investment Data Implies about the AI Transition
A5: x | C5: Consumption Boom Size
C7: Scenario | D7: s_a | E7: xi_b | F7: p_b
C8: No AI | D8: 0 | E8: =D8*(1-alpha)*xi -> 0 | F8: 0
C9: Moderate | D9: ='Model 1 - Inv & GDP Paths'!I85 -> 0.08052197395 | E9: =D9*(1-alpha)*xi -> 0.05308951724 | F9: =p_star -> 0.03932532751
C10: Transformative | D10: ='Model 1 - Inv & GDP Paths'!I86 -> 0.1905716024 | E10: =D10*(1-alpha)*xi -> 0.1256471231 | F10: =p_star -> 0.03932532751
C11: Singularity | D11: ='Model 1 - Inv & GDP Paths'!I88 -> 0.3876206893 | E11: =D11*(1-alpha)*xi -> 0.2555649627 | F11: =p_star -> 0.03932532751
C12: Absorbing limit | D12: 1 | E12: =D12*(1-alpha)*xi -> 0.6593171359 | F12: =p_star -> 0.03932532751
A14: x | C14: Risk-free rate and ERP
A16: x | C16: Toggles
C17: Scenario | D17: 3
C18: Selected Scenario | D18: =OFFSET(C7, D17, 0) -> Transformative
C20: xi_b | D20: =OFFSET(E7,D17,0) -> 0.1256471231
C21: p_b | D21: =OFFSET(F7,D17,0) -> 0.03932532751
C23: gamma | D23: Phi_d(1) | E23: Phi_d(-gamma) | F23: Phi_d(1- gamma) | G23: Phi_b(1) | H23: Phi_b(-gamma) | I23: Phi_b(1- gamma) | J23: r_f | K23: ERP
C24: 1 | D24: =(1-p_d) + p_d * EXP(xi_d) -> 0.9949854872 | E24: =(1-p_d) + p_d * EXP(-C24*xi_d) -> 1.005826033 | F24: =(1-p_d) + p_d * EXP((1-C24)*xi_d) -> 1 | G24: =(1-$D$21)+$D$21*EXP($D$20) -> 1.005264953 | H24: =(1-$D$21)+$D$21*EXP(-C24*$D$20) -> 0.9953567014 | I24: =(1-$D$21)+$D$21*EXP((1-C24)*$D$20) -> 1 | J24: =rho + mu_c + sigma_c^2 * (1 - 2 *C24)/2 + LN(F24/E24) + LN(I24/H24) -> 0.04364498515 | K24: =C24*sigma_c^2+LN(D24*E24/F24)+LN(G24*H24/I24) -> 0.001779028324
C25: 2 | D25: 0.9949854872 | E25: 1.012594917 | F25: 1.005826033 | G25: =(1-$D$21)+$D$21*EXP($D$20) -> 1.005264953 | H25: =(1-$D$21)+$D$21*EXP(-C25*$D$20) -> 0.9912616556 | I25: =(1-$D$21)+$D$21*EXP((1-C25)*$D$20) -> 0.9953567014 | J25: 0.04181550157 | K25: 0.00360851191
C26: 3 | D26: 0.9949854872 | E26: 1.020459239 | F26: 1.012594917 | G26: 1.005264953 | H26: 0.9876501283 | I26: 0.9912616556 | J26: 0.03991351843 | K26: 0.005510495045
C27: 4 | D27: 0.9949854872 | E27: 1.029596277 | F27: 1.020459239 | G27: 1.005264953 | H27: 0.9844650284 | I27: 0.9876501283 | J27: 0.03791613743 | K27: 0.007507876048
C28: 5 | D28: 0.9949854872 | E28: 1.040212001 | F28: 1.029596277 | G28: 1.005264953 | H28: 0.981656006 | I28: 0.9844650284 | J28: 0.0357996497 | K28: 0.009624363774
C29: 6 | D29: 0.9949854872 | E29: 1.052545712 | F29: 1.040212001 | G29: 1.005264953 | H29: 0.9791786561 | I29: 0.981656006 | J29: 0.03353965501 | K29: 0.01188435847
A31: x | C31: Scenario Analysis
C32: Press Alt + F8, and click RunRAModelScenarioAnalysis. VBA script toggles through settings and outputs results below
C34: gamma | D34: No AI | F34: Moderate | H34: Transformative | J34: Singularity | L34: Absorbing Limit
D35: r_f | E35: ERP | F35: r_f | G35: ERP | H35: r_f | I35: ERP | J35: r_f | K35: ERP | L35: r_f | M35: ERP
C36: 1 | D36: 0.03899087296 | E36: 0.001181999332 | F36: 0.04102625429 | G36: 0.001288498231 | H36: 0.04364498515 | I36: 0.001779028324 | J36: 0.04789912806 | K36: 0.003659852869 | L36: 0.05815951849 | M36: 0.01806469963
C37: 2 | D37: 0.03769286618 | E37: 0.002480006114 | F37: 0.03962684291 | G37: 0.002687909612 | H37: 0.04181550157 | I37: 0.00360851191 | J37: 0.04464706722 | K37: 0.006911913712 | L37: 0.0477530382 | M37: 0.02847117992
C38: 3 | D38: 0.03626350089 | E38: 0.0039093714 | F38: 0.03810094323 | G38: 0.004213809286 | H38: 0.03991351843 | I38: 0.005510495045 | J38: 0.04168281104 | K38: 0.009876169895 | L38: 0.04150664773 | M38: 0.03471757039
C39: 4 | D39: 0.03468599882 | E39: 0.005486873469 | F39: 0.03643156083 | G39: 0.005883191689 | H39: 0.03791613743 | I39: 0.007507876048 | J39: 0.03890341395 | K39: 0.01265556699 | L39: 0.0374086019 | M39: 0.03881561622
C40: 5 | D40: 0.03294222204 | E40: 0.007230650255 | F40: 0.03460034946 | G40: 0.007714403054 | H40: 0.0357996497 | I40: 0.009624363774 | J40: 0.03622078672 | K40: 0.01533819421 | L40: 0.03435327803 | M40: 0.04187094009
C41: 6 | D41: 0.03101282165 | E41: 0.009160050646 | F41: 0.03258775969 | G41: 0.009726992824 | H41: 0.03353965501 | I41: 0.01188435847 | J41: 0.03355940735 | K41: 0.01799957359 | L41: 0.03174340796 | M41: 0.04448081016
